[Event "*** Titled Tuesday Blitz"]
[Site "Chess.com"]
[Date "2020.12.01"]
[Round "3"]
[White "CalinGheorghiu"]
[Black "MPGM"]
[Result "0-1"]
[WhiteElo "2393"]
[BlackElo "2635"]
[TimeControl "180+1"]
[EndTime "10:26:39 PST"]
[Termination "MPGM won on time"]

1. e4 {[%clk 0:01:22.3]} 1... c6 {[%clk 0:02:50.9]} 2. Nc3 {[%clk 0:01:16]} 2...
d5 {[%clk 0:02:50]} 3. Nf3 {[%clk 0:01:16.5]} 3... dxe4 {[%clk 0:02:45.9]} 4.
Nxe4 {[%clk 0:01:17.4]} 4... Nf6 {[%clk 0:02:46.6]} 5. Qe2 {[%clk 0:01:15.5]}
5... Bg4 {[%clk 0:02:47]} 6. Nxf6+ {[%clk 0:01:09.5]} 6... gxf6 {[%clk
0:02:47.9]} 7. h3 {[%clk 0:01:08.7]} 7... Bh5 {[%clk 0:02:48.5]} 8. g4 {[%clk
0:01:06.2]} 8... Bg6 {[%clk 0:02:48.2]} 9. d3 {[%clk 0:01:06.8]} 9... Nd7 {[%clk
0:02:47.8]} 10. Bg2 {[%clk 0:01:07.2]} 10... e6 {[%clk 0:02:46.3]} 11. Bd2
{[%clk 0:01:06.3]} 11... Nb6 {[%clk 0:02:44]} 12. O-O {[%clk 0:01:04.4]} 12...
Rg8 {[%clk 0:02:38.3]} 13. Nh4 {[%clk 0:00:54.9]} 13... f5 {[%clk 0:02:33]} 14.
Nxg6 {[%clk 0:00:49.6]} 14... hxg6 {[%clk 0:02:33.9]} 15. g5 {[%clk 0:00:47.7]}
15... Qc7 {[%clk 0:02:06.9]} 16. a4 {[%clk 0:00:38.6]} 16... Bg7 {[%clk
0:02:01.1]} 17. c3 {[%clk 0:00:28.6]} 17... Rh8 {[%clk 0:02:01.2]} 18. a5 {[%clk
0:00:27.5]} 18... Nd5 {[%clk 0:02:01.3]} 19. Qf3 {[%clk 0:00:27.9]} 19... a6
{[%clk 0:01:56.4]} 20. c4 {[%clk 0:00:26.6]} 20... Ne7 {[%clk 0:01:48.4]} 21.
Rab1 {[%clk 0:00:26.6]} 21... O-O-O {[%clk 0:01:45]} 22. b4 {[%clk 0:00:24.5]}
22... e5 {[%clk 0:01:29.9]} 23. Qe3 {[%clk 0:00:19.4]} 23... e4 {[%clk 0:01:18]}
0-1

[Event "*** Titled Tuesday Blitz"]
[Site "Chess.com"]
[Date "2020.12.01"]
[Round "3"]
[White "elegant285"]
[Black "IngOscarArdila"]
[Result "0-1"]
[WhiteElo "2331"]
[BlackElo "2181"]
[TimeControl "180+1"]
[EndTime "10:26:43 PST"]
[Termination "IngOscarArdila won by resignation"]

1. Nf3 {[%clk 0:03:00.9]} 1... Nf6 {[%clk 0:02:59.6]} 2. g3 {[%clk 0:03:00.7]}
2... g6 {[%clk 0:02:59.7]} 3. Bg2 {[%clk 0:03:01]} 3... Bg7 {[%clk 0:03:00.3]}
4. O-O {[%clk 0:03:01.8]} 4... d6 {[%clk 0:03:00.5]} 5. c4 {[%clk 0:03:01.1]}
5... O-O {[%clk 0:03:01]} 6. Nc3 {[%clk 0:03:01.3]} 6... e5 {[%clk 0:03:01.5]}
7. d4 {[%clk 0:03:00.2]} 7... exd4 {[%clk 0:03:00.7]} 8. Nxd4 {[%clk 0:02:58.1]}
8... Nbd7 {[%clk 0:03:01.3]} 9. e4 {[%clk 0:02:50]} 9... Re8 {[%clk 0:03:01.2]}
10. Re1 {[%clk 0:02:48.8]} 10... Nc5 {[%clk 0:03:01]} 11. Bg5 {[%clk 0:02:26.5]}
11... h6 {[%clk 0:02:55.6]} 12. Bf4 {[%clk 0:02:16.8]} 12... Bg4 {[%clk
0:02:47.7]} 13. f3 {[%clk 0:02:05.1]} 13... Bd7 {[%clk 0:02:43.9]} 14. Qd2
{[%clk 0:02:01.2]} 14... Kh7 {[%clk 0:02:44]} 15. Rad1 {[%clk 0:01:58.2]} 15...
a5 {[%clk 0:02:42]} 16. Nd5 {[%clk 0:01:54]} 16... Nxd5 {[%clk 0:02:41]} 17.
cxd5 {[%clk 0:01:47.2]} 17... Be5 {[%clk 0:02:14.9]} 18. Be3 {[%clk 0:01:41.9]}
18... Bg7 {[%clk 0:02:12]} 19. Rc1 {[%clk 0:01:35]} 19... Qf6 {[%clk 0:02:07.8]}
20. b3 {[%clk 0:01:22]} 20... b5 {[%clk 0:02:04.1]} 21. a3 {[%clk 0:01:13.4]}
21... Qe7 {[%clk 0:02:00.2]} 22. b4 {[%clk 0:00:56.8]} 22... axb4 {[%clk
0:01:54.3]} 23. axb4 {[%clk 0:00:57.7]} 23... Bxd4 {[%clk 0:01:49.6]} 24. bxc5
{[%clk 0:00:55]} 24... Bxc5 {[%clk 0:01:39.6]} 25. Bxc5 {[%clk 0:00:47.8]} 25...
dxc5 {[%clk 0:01:39.9]} 26. e5 {[%clk 0:00:48.2]} 26... c4 {[%clk 0:01:28.2]}
27. d6 {[%clk 0:00:47.7]} 27... cxd6 {[%clk 0:01:27.3]} 28. exd6 {[%clk
0:00:47.3]} 28... Qf6 {[%clk 0:01:27.3]} 29. f4 {[%clk 0:00:44.6]} 29... c3
{[%clk 0:01:24]} 30. Qd3 {[%clk 0:00:36.1]} 30... Rxe1+ {[%clk 0:01:20.7]} 31.
Rxe1 {[%clk 0:00:35.8]} 31... Rc8 {[%clk 0:01:20.7]} 32. Rc1 {[%clk 0:00:34.3]}
32... b4 {[%clk 0:01:19.8]} 33. Bd5 {[%clk 0:00:26.8]} 33... Qxd6 {[%clk
0:01:17.9]} 0-1

[Event "*** Titled Tuesday Blitz"]
[Site "Chess.com"]
[Date "2020.12.01"]
[Round "3"]
[White "Zq1"]
[Black "BilodeauA"]
[Result "0-1"]
[WhiteElo "2592"]
[BlackElo "2836"]
[TimeControl "180+1"]
[EndTime "10:26:48 PST"]
[Termination "BilodeauA won by resignation"]

1. d4 {[%clk 0:03:00.9]} 1... d5 {[%clk 0:03:00.5]} 2. c4 {[%clk 0:03:00.9]}
2... dxc4 {[%clk 0:03:01.4]} 3. Nf3 {[%clk 0:02:58.8]} 3... a6 {[%clk
0:03:01.4]} 4. e3 {[%clk 0:02:58.6]} 4... Bg4 {[%clk 0:03:00.9]} 5. Bxc4 {[%clk
0:02:57.2]} 5... e6 {[%clk 0:03:01]} 6. Nc3 {[%clk 0:02:55.3]} 6... Nc6 {[%clk
0:03:01.5]} 7. Be2 {[%clk 0:02:54.1]} 7... Nf6 {[%clk 0:03:01.4]} 8. O-O {[%clk
0:02:52.7]} 8... Bd6 {[%clk 0:03:01.4]} 9. Qb3 {[%clk 0:02:52.1]} 9... O-O
{[%clk 0:02:57.4]} 10. h3 {[%clk 0:02:51.4]} 10... Bh5 {[%clk 0:02:57.2]} 11.
Rd1 {[%clk 0:02:50.5]} 11... Qe8 {[%clk 0:02:14]} 12. Bd2 {[%clk 0:02:29.4]}
12... Rb8 {[%clk 0:02:05.1]} 13. Be1 {[%clk 0:02:22.9]} 13... e5 {[%clk
0:02:03.6]} 14. d5 {[%clk 0:02:19.7]} 14... Ne7 {[%clk 0:02:02.8]} 15. Rac1
{[%clk 0:02:01.7]} 15... h6 {[%clk 0:01:52.6]} 16. e4 {[%clk 0:01:55.9]} 16...
Qd7 {[%clk 0:01:47.6]} 17. Kh2 {[%clk 0:01:45.8]} 17... Ng6 {[%clk 0:01:46.3]}
18. g3 {[%clk 0:01:44.3]} 18... Nh7 {[%clk 0:01:40.6]} 19. Nxe5 {[%clk
0:01:33.8]} 19... Nxe5 {[%clk 0:01:39.4]} 20. Bxh5 {[%clk 0:01:32.9]} 20... Ng5
{[%clk 0:01:39.9]} 21. Bg4 {[%clk 0:01:13.1]} 21... Nxg4+ {[%clk 0:01:37.8]} 22.
hxg4 {[%clk 0:01:12.7]} 22... Qxg4 {[%clk 0:01:37.9]} 23. Rd3 {[%clk 0:00:51.8]}
23... Rbe8 {[%clk 0:01:30.2]} 24. Qd1 {[%clk 0:00:37.6]} 24... Qh3+ {[%clk
0:01:27.7]} 25. Kg1 {[%clk 0:00:36.7]} 25... Nxe4 {[%clk 0:01:27.9]} 26. Qf3
{[%clk 0:00:28.9]} 26... Ng5 {[%clk 0:01:24.7]} 27. Qg2 {[%clk 0:00:28.8]} 27...
Qf5 {[%clk 0:01:19.4]} 28. Qf1 {[%clk 0:00:16.7]} 28... Nf3+ {[%clk 0:01:08.3]}
0-1

[Event "*** Titled Tuesday Blitz"]
[Site "Chess.com"]
[Date "2020.12.01"]
[Round "3"]
[White "LaPorfia"]
[Black "Khnykin_Nikolay"]
[Result "1-0"]
[WhiteElo "2302"]
[BlackElo "2036"]
[TimeControl "180+1"]
[EndTime "10:26:48 PST"]
[Termination "LaPorfia won on time"]

1. d4 {[%clk 0:03:00.9]} 1... e6 {[%clk 0:02:58.1]} 2. Nf3 {[%clk 0:03:00.5]}
2... d5 {[%clk 0:02:43.9]} 3. Bf4 {[%clk 0:02:59.9]} 3... Nf6 {[%clk 0:02:43.1]}
4. Nbd2 {[%clk 0:02:59]} 4... c5 {[%clk 0:02:38.1]} 5. e3 {[%clk 0:02:58.6]}
5... Nc6 {[%clk 0:02:36.3]} 6. c3 {[%clk 0:02:56.6]} 6... Be7 {[%clk 0:02:33.5]}
7. Bd3 {[%clk 0:02:55.6]} 7... O-O {[%clk 0:02:27.2]} 8. Ne5 {[%clk 0:02:53.1]}
8... cxd4 {[%clk 0:02:16.4]} 9. exd4 {[%clk 0:02:52.2]} 9... h6 {[%clk
0:01:52.8]} 10. h4 {[%clk 0:02:45.1]} 10... Bd6 {[%clk 0:01:22.1]} 11. Qe2
{[%clk 0:02:35.8]} 11... Re8 {[%clk 0:01:10.8]} 12. O-O-O {[%clk 0:02:31.4]}
12... Bf8 {[%clk 0:01:04.5]} 13. Kb1 {[%clk 0:02:28]} 13... Qa5 {[%clk
0:01:02.6]} 14. g4 {[%clk 0:02:27]} 14... Ba3 {[%clk 0:00:26.1]} 15. Nb3 {[%clk
0:02:15.4]} 15... Qa4 {[%clk 0:00:20.7]} 16. bxa3 {[%clk 0:02:14.1]} 16... Qxa3
{[%clk 0:00:20.8]} 17. Qb2 {[%clk 0:02:12.9]} 17... Qa4 {[%clk 0:00:18.8]} 18.
g5 {[%clk 0:02:11.4]} 18... Nd7 {[%clk 0:00:16.4]} 19. gxh6 {[%clk 0:02:09.7]}
19... g6 {[%clk 0:00:14.5]} 20. h5 {[%clk 0:02:05.1]} 20... Ndxe5 {[%clk
0:00:13.5]} 21. Bxe5 {[%clk 0:02:04.1]} 21... Kh7 {[%clk 0:00:12.3]} 22. hxg6+
{[%clk 0:02:03.3]} 22... fxg6 {[%clk 0:00:11.8]} 23. Bg7 {[%clk 0:01:56.1]}
23... Bd7 {[%clk 0:00:11]} 24. Qc2 {[%clk 0:01:55.8]} 24... Rac8 {[%clk
0:00:08.3]} 25. Bxg6+ {[%clk 0:01:55.4]} 25... Kg8 {[%clk 0:00:08]} 26. Bh7+
{[%clk 0:01:54.5]} 26... Kf7 {[%clk 0:00:08.3]} 27. Qg6+ {[%clk 0:01:50.8]}
27... Ke7 {[%clk 0:00:07.8]} 28. Qg5+ {[%clk 0:01:47.9]} 28... Kd6 {[%clk
0:00:04.9]} 29. Be5+ {[%clk 0:01:45]} 29... Nxe5 {[%clk 0:00:04.5]} 30. Qxe5+
{[%clk 0:01:45.9]} 30... Kc6 {[%clk 0:00:04.2]} 31. Bc2 {[%clk 0:01:41.9]} 31...
Kb6 {[%clk 0:00:03.2]} 32. Qd6+ {[%clk 0:01:36.5]} 32... Rc6 {[%clk 0:00:01.5]}
33. Qb4+ {[%clk 0:01:34]} 33... Qxb4 {[%clk 0:00:01]} 34. cxb4 {[%clk
0:01:34.9]} 1-0

[Event "*** Titled Tuesday Blitz"]
[Site "Chess.com"]
[Date "2020.12.01"]
[Round "3"]
[White "AldokhinIvan"]
[Black "Tsyhanchuk_Stanislav"]
[Result "1-0"]
[WhiteElo "2494"]
[BlackElo "2227"]
[TimeControl "180+1"]
[EndTime "10:26:52 PST"]
[Termination "AldokhinIvan won by checkmate"]

1. e4 {[%clk 0:03:00.9]} 1... c6 {[%clk 0:02:59.5]} 2. Nc3 {[%clk 0:03:00.4]}
2... d5 {[%clk 0:03:00.4]} 3. d4 {[%clk 0:03:00.5]} 3... dxe4 {[%clk 0:02:59]}
4. Nxe4 {[%clk 0:03:00]} 4... Bf5 {[%clk 0:02:58.9]} 5. Ng3 {[%clk 0:02:53.9]}
5... Bg6 {[%clk 0:02:58]} 6. h4 {[%clk 0:02:52.9]} 6... h6 {[%clk 0:02:58.1]} 7.
Nh3 {[%clk 0:02:53.4]} 7... e6 {[%clk 0:02:55.4]} 8. Nf4 {[%clk 0:02:52.6]} 8...
Bh7 {[%clk 0:02:55.6]} 9. Be3 {[%clk 0:02:53.2]} 9... Nf6 {[%clk 0:02:55.1]} 10.
Bd3 {[%clk 0:02:52.9]} 10... Bxd3 {[%clk 0:02:53.9]} 11. Qxd3 {[%clk 0:02:49.2]}
11... Qc7 {[%clk 0:02:53.8]} 12. O-O-O {[%clk 0:02:40.8]} 12... Nbd7 {[%clk
0:02:53.8]} 13. Kb1 {[%clk 0:02:28.6]} 13... O-O-O {[%clk 0:02:53.7]} 14. Ngh5
{[%clk 0:02:20.1]} 14... Nxh5 {[%clk 0:02:48.6]} 15. Nxh5 {[%clk 0:02:20.4]}
15... g6 {[%clk 0:02:48.1]} 16. Ng3 {[%clk 0:02:20.5]} 16... Bg7 {[%clk
0:02:46.7]} 17. h5 {[%clk 0:02:17.5]} 17... g5 {[%clk 0:02:46.2]} 18. Qa3 {[%clk
0:02:11.9]} 18... Kb8 {[%clk 0:02:38.4]} 19. d5 {[%clk 0:02:02.1]} 19... cxd5
{[%clk 0:02:18.5]} 20. Qxa7+ {[%clk 0:01:54.9]} 20... Kc8 {[%clk 0:02:17.7]} 21.
c4 {[%clk 0:01:47.6]} 21... Nb8 {[%clk 0:02:09.8]} 22. cxd5 {[%clk 0:01:44.1]}
22... Rxd5 {[%clk 0:01:58.6]} 23. Rxd5 {[%clk 0:01:43.2]} 23... exd5 {[%clk
0:01:59.5]} 24. Nf5 {[%clk 0:01:14]} 24... Bf6 {[%clk 0:01:41.4]} 25. Qa8 {[%clk
0:00:37.3]} 25... Qe5 {[%clk 0:01:22.6]} 26. Rc1+ {[%clk 0:00:35.8]} 26... Kd8
{[%clk 0:01:22.4]} 27. Bb6+ {[%clk 0:00:27]} 27... Kd7 {[%clk 0:01:12.6]} 28.
Qxb7+ {[%clk 0:00:26.5]} 28... Ke6 {[%clk 0:01:12.8]} 29. Nd4+ {[%clk
0:00:19.3]} 29... Kd6 {[%clk 0:01:09.4]} 30. Bc5# {[%clk 0:00:14.9]} 1-0

[Event "*** Titled Tuesday Blitz"]
[Site "Chess.com"]
[Date "2020.12.01"]
[Round "3"]
[White "dopolian"]
[Black "DonPreuss"]
[Result "1-0"]
[WhiteElo "2425"]
[BlackElo "2233"]
[TimeControl "180+1"]
[EndTime "10:26:52 PST"]
[Termination "dopolian won by resignation"]

1. Nf3 {[%clk 0:03:00.9]} 1... Nc6 {[%clk 0:02:58.6]} 2. d4 {[%clk 0:03:00.5]}
2... e5 {[%clk 0:02:58.9]} 3. dxe5 {[%clk 0:02:58.1]} 3... f6 {[%clk 0:02:58.5]}
4. exf6 {[%clk 0:02:52.8]} 4... Nxf6 {[%clk 0:02:59.4]} 5. Nc3 {[%clk
0:02:50.7]} 5... d5 {[%clk 0:02:59.7]} 6. Bg5 {[%clk 0:02:50.4]} 6... Bd6 {[%clk
0:02:59.2]} 7. Bxf6 {[%clk 0:02:49.1]} 7... Qxf6 {[%clk 0:03:00.1]} 8. Qxd5
{[%clk 0:02:35.3]} 8... Be6 {[%clk 0:03:00.1]} 9. Qd2 {[%clk 0:02:35.3]} 9...
O-O {[%clk 0:02:57.8]} 10. O-O-O {[%clk 0:02:32.9]} 10... Rad8 {[%clk
0:02:52.3]} 11. Ne4 {[%clk 0:02:26.4]} 11... Qe7 {[%clk 0:02:35.6]} 12. Nxd6
{[%clk 0:02:22.8]} 12... Rxd6 {[%clk 0:02:36.5]} 13. Qe1 {[%clk 0:02:21.3]}
13... Rxd1+ {[%clk 0:02:25.8]} 14. Qxd1 {[%clk 0:02:22.2]} 14... Rd8 {[%clk
0:02:25.9]} 15. Qe1 {[%clk 0:02:19.9]} 15... Bxa2 {[%clk 0:01:57.3]} 16. e3
{[%clk 0:02:10.5]} 16... Qc5 {[%clk 0:01:46.6]} 17. Qc3 {[%clk 0:02:07]} 17...
Qxc3 {[%clk 0:01:42.7]} 18. bxc3 {[%clk 0:02:07.9]} 18... Bd5 {[%clk 0:01:33.3]}
19. Nd4 {[%clk 0:02:04]} 19... Na5 {[%clk 0:01:28.1]} 20. f3 {[%clk 0:02:03.2]}
20... Nc4 {[%clk 0:01:27.5]} 21. e4 {[%clk 0:02:03.1]} 21... Bf7 {[%clk
0:01:27.4]} 22. Be2 {[%clk 0:01:50.5]} 22... c5 {[%clk 0:01:23.4]} 23. Nb3
{[%clk 0:01:45.7]} 23... b6 {[%clk 0:01:22.2]} 24. Bxc4 {[%clk 0:01:37.1]} 24...
Bxc4 {[%clk 0:01:21.3]} 25. Rd1 {[%clk 0:01:36.9]} 25... Rxd1+ {[%clk
0:01:19.3]} 26. Kxd1 {[%clk 0:01:36.8]} 26... Kf7 {[%clk 0:00:55.5]} 27. Nd2
{[%clk 0:01:31.3]} 27... Be6 {[%clk 0:00:47.4]} 28. c4 {[%clk 0:01:30]} 28...
Ke7 {[%clk 0:00:41.1]} 29. Ke2 {[%clk 0:01:21.7]} 29... a6 {[%clk 0:00:40.9]}
30. Kd3 {[%clk 0:01:20.5]} 30... Kd6 {[%clk 0:00:40.7]} 31. f4 {[%clk 0:01:20]}
31... Bf7 {[%clk 0:00:35.3]} 32. f5 {[%clk 0:01:09.8]} 32... b5 {[%clk
0:00:29.3]} 33. cxb5 {[%clk 0:01:05.4]} 33... axb5 {[%clk 0:00:30.2]} 34. Nf3
{[%clk 0:01:05]} 34... c4+ {[%clk 0:00:28.4]} 35. Kd4 {[%clk 0:01:04.3]} 35...
Kc6 {[%clk 0:00:28.3]} 36. Ne5+ {[%clk 0:01:03.6]} 1-0

[Event "*** Titled Tuesday Blitz"]
[Site "Chess.com"]
[Date "2020.12.01"]
[Round "3"]
[White "cukin84"]
[Black "GM_LOADING"]
[Result "1-0"]
[WhiteElo "2191"]
[BlackElo "2469"]
[TimeControl "180+1"]
[EndTime "10:26:56 PST"]
[Termination "cukin84 won by resignation"]

1. e4 {[%clk 0:03:00.9]} 1... e5 {[%clk 0:02:54]} 2. Nf3 {[%clk 0:03:00]} 2...
Nc6 {[%clk 0:02:48.9]} 3. c3 {[%clk 0:02:59.1]} 3... d5 {[%clk 0:02:38.7]} 4.
Qa4 {[%clk 0:02:58.2]} 4... dxe4 {[%clk 0:01:30.1]} 5. Nxe5 {[%clk 0:02:57.7]}
5... Qd5 {[%clk 0:01:30.3]} 6. Nxc6 {[%clk 0:02:57]} 6... bxc6 {[%clk
0:01:30.5]} 7. Bc4 {[%clk 0:02:56.2]} 7... Qd6 {[%clk 0:01:12.5]} 8. d3 {[%clk
0:02:55.8]} 8... Nf6 {[%clk 0:00:58.6]} 9. O-O {[%clk 0:02:51.6]} 9... exd3
{[%clk 0:00:38.4]} 10. Bf4 {[%clk 0:02:46.3]} 10... Qd7 {[%clk 0:00:15.5]} 11.
Bxd3 {[%clk 0:02:42.9]} 11... Be7 {[%clk 0:00:03.3]} 12. Rd1 {[%clk 0:02:41.5]}
12... Nd5 {[%clk 0:00:03.5]} 13. Bg3 {[%clk 0:02:37.8]} 13... O-O {[%clk
0:00:03.7]} 14. c4 {[%clk 0:02:37.2]} 14... Nb6 {[%clk 0:00:04]} 15. Qc2 {[%clk
0:02:27.2]} 15... Qg4 {[%clk 0:00:03.3]} 16. Bxh7+ {[%clk 0:02:24.9]} 16... Kh8
{[%clk 0:00:03.9]} 17. Bd3 {[%clk 0:02:24.4]} 17... Be6 {[%clk 0:00:04.3]} 18.
b3 {[%clk 0:02:14]} 18... Qh5 {[%clk 0:00:03.8]} 19. Nc3 {[%clk 0:02:12.1]}
19... Rad8 {[%clk 0:00:04.2]} 20. Be2 {[%clk 0:02:08.4]} 20... Qh6 {[%clk
0:00:03.8]} 21. Rxd8 {[%clk 0:01:54.4]} 21... Rxd8 {[%clk 0:00:03.5]} 22. Rd1
{[%clk 0:01:54.5]} 22... Rxd1+ {[%clk 0:00:03.2]} 23. Qxd1 {[%clk 0:01:53.8]}
23... Bf6 {[%clk 0:00:03.7]} 24. Ne4 {[%clk 0:01:52.6]} 24... Bb2 {[%clk
0:00:03.8]} 25. Nc5 {[%clk 0:01:47]} 25... Bf5 {[%clk 0:00:03.3]} 26. h3 {[%clk
0:01:45.7]} 26... Qg5 {[%clk 0:00:02.6]} 27. Bf3 {[%clk 0:01:40.2]} 27... Bxh3
{[%clk 0:00:02.6]} 28. gxh3 {[%clk 0:01:36.3]} 28... Qxc5 {[%clk 0:00:02.5]} 29.
Qd8+ {[%clk 0:01:36.1]} 29... Kh7 {[%clk 0:00:02.6]} 30. Be4+ {[%clk 0:01:33.1]}
30... g6 {[%clk 0:00:01.9]} 31. Qxc7 {[%clk 0:01:27.7]} 31... Bf6 {[%clk
0:00:01.5]} 32. Qxf7+ {[%clk 0:01:26.8]} 32... Bg7 {[%clk 0:00:01.4]} 1-0

[Event "*** Titled Tuesday Blitz"]
[Site "Chess.com"]
[Date "2020.12.01"]
[Round "3"]
[White "vwnv7"]
[Black "szefru"]
[Result "1-0"]
[WhiteElo "2411"]
[BlackElo "2213"]
[TimeControl "180+1"]
[EndTime "10:26:56 PST"]
[Termination "vwnv7 won by checkmate"]

1. c4 {[%clk 0:03:00.9]} 1... e5 {[%clk 0:02:57]} 2. Nc3 {[%clk 0:03:01]} 2...
Nc6 {[%clk 0:02:56.6]} 3. g3 {[%clk 0:03:01.3]} 3... g6 {[%clk 0:02:55.3]} 4.
Bg2 {[%clk 0:03:01.7]} 4... Bg7 {[%clk 0:02:55.6]} 5. e4 {[%clk 0:03:02.2]} 5...
Nge7 {[%clk 0:02:55.7]} 6. Nge2 {[%clk 0:03:02.6]} 6... d6 {[%clk 0:02:56]} 7.
d3 {[%clk 0:03:02.4]} 7... O-O {[%clk 0:02:56.5]} 8. h4 {[%clk 0:02:56.7]} 8...
h6 {[%clk 0:02:56.5]} 9. Be3 {[%clk 0:02:50.4]} 9... Kh7 {[%clk 0:02:55.4]} 10.
Qd2 {[%clk 0:02:49.3]} 10... f5 {[%clk 0:02:54.8]} 11. Nd5 {[%clk 0:02:36.5]}
11... Nxd5 {[%clk 0:02:52]} 12. cxd5 {[%clk 0:02:34.3]} 12... Nd4 {[%clk
0:02:48.2]} 13. Bxd4 {[%clk 0:02:04.4]} 13... exd4 {[%clk 0:02:49.1]} 14. Nf4
{[%clk 0:02:00.9]} 14... Qf6 {[%clk 0:02:38.6]} 15. Rc1 {[%clk 0:01:57]} 15...
Rf7 {[%clk 0:02:30.5]} 16. Rc2 {[%clk 0:01:35.4]} 16... fxe4 {[%clk 0:02:25.9]}
17. dxe4 {[%clk 0:01:33.7]} 17... Qe5 {[%clk 0:02:14]} 18. O-O {[%clk
0:01:13.2]} 18... Bg4 {[%clk 0:02:03.4]} 19. f3 {[%clk 0:01:07.3]} 19... Bh5
{[%clk 0:01:50.9]} 20. Rfc1 {[%clk 0:01:02]} 20... Rc8 {[%clk 0:01:48.8]} 21.
Nxh5 {[%clk 0:00:26.1]} 21... gxh5 {[%clk 0:01:47]} 22. f4 {[%clk 0:00:20.4]}
22... Qf6 {[%clk 0:01:42.2]} 23. Bh3 {[%clk 0:00:20.3]} 23... Re8 {[%clk
0:01:36.2]} 24. Bf5+ {[%clk 0:00:20.3]} 24... Kh8 {[%clk 0:01:35.1]} 25. Rxc7
{[%clk 0:00:20.6]} 25... Ree7 {[%clk 0:01:14.8]} 26. Rxe7 {[%clk 0:00:19.8]}
26... Rxe7 {[%clk 0:01:14.4]} 27. Rc8+ {[%clk 0:00:19.8]} 27... Bf8 {[%clk
0:01:13.9]} 28. Qd1 {[%clk 0:00:17.8]} 28... Qf7 {[%clk 0:01:08.4]} 29. Qxd4+
{[%clk 0:00:17.4]} 29... Qg7 {[%clk 0:01:04.5]} 30. Rxf8# {[%clk 0:00:16.6]} 1-0

[Event "*** Titled Tuesday Blitz"]
[Site "Chess.com"]
[Date "2020.12.01"]
[Round "3"]
[White "dretch"]
[Black "rychessmaster1"]
[Result "1-0"]
[WhiteElo "2825"]
[BlackElo "2558"]
[TimeControl "180+1"]
[EndTime "10:26:57 PST"]
[Termination "dretch won by checkmate"]

1. d4 {[%clk 0:02:26.8]} 1... Nf6 {[%clk 0:02:57.7]} 2. c4 {[%clk 0:02:27.2]}
2... e6 {[%clk 0:02:58.1]} 3. Nc3 {[%clk 0:02:27.9]} 3... Bb4 {[%clk 0:02:58.7]}
4. Qc2 {[%clk 0:02:28.7]} 4... d6 {[%clk 0:02:59]} 5. Bd2 {[%clk 0:02:25.4]}
5... Nbd7 {[%clk 0:02:57.4]} 6. a3 {[%clk 0:02:23.8]} 6... Bxc3 {[%clk 0:02:58]}
7. Bxc3 {[%clk 0:02:24.7]} 7... b6 {[%clk 0:02:58.7]} 8. e4 {[%clk 0:02:24.2]}
8... Bb7 {[%clk 0:02:57.8]} 9. Bd3 {[%clk 0:02:21.5]} 9... e5 {[%clk 0:02:52.5]}
10. Ne2 {[%clk 0:02:20.4]} 10... Qe7 {[%clk 0:02:50.9]} 11. O-O {[%clk
0:02:19.4]} 11... O-O {[%clk 0:02:50.1]} 12. Ng3 {[%clk 0:02:18.7]} 12... g6
{[%clk 0:02:48.7]} 13. Rae1 {[%clk 0:02:11.7]} 13... c5 {[%clk 0:02:46.5]} 14.
d5 {[%clk 0:02:11]} 14... Ng4 {[%clk 0:02:36.1]} 15. f3 {[%clk 0:02:01.4]} 15...
Nh6 {[%clk 0:02:35.7]} 16. Qc1 {[%clk 0:01:58]} 16... Kg7 {[%clk 0:02:35.9]} 17.
f4 {[%clk 0:01:54.6]} 17... f6 {[%clk 0:02:33.3]} 18. f5 {[%clk 0:01:52.7]}
18... Nf7 {[%clk 0:02:29.6]} 19. h4 {[%clk 0:01:48.6]} 19... a6 {[%clk
0:02:26.2]} 20. Rf3 {[%clk 0:01:47.4]} 20... Rh8 {[%clk 0:02:23.3]} 21. Bd2
{[%clk 0:01:46]} 21... Rag8 {[%clk 0:02:23]} 22. Ref1 {[%clk 0:01:43.1]} 22...
Kf8 {[%clk 0:02:19.2]} 23. Be2 {[%clk 0:01:41.2]} 23... Ke8 {[%clk 0:02:18.4]}
24. b4 {[%clk 0:01:39.3]} 24... Qd8 {[%clk 0:02:13.8]} 25. Rb3 {[%clk
0:01:36.6]} 25... Ke7 {[%clk 0:02:12.2]} 26. Bg4 {[%clk 0:01:29.7]} 26... g5
{[%clk 0:02:10]} 27. h5 {[%clk 0:00:59.5]} 27... h6 {[%clk 0:02:09.1]} 28. Qb2
{[%clk 0:00:58.4]} 28... Qc7 {[%clk 0:02:08.7]} 29. bxc5 {[%clk 0:00:51]} 29...
dxc5 {[%clk 0:02:08.6]} 30. Ba5 {[%clk 0:00:50.6]} 30... Bxd5 {[%clk 0:01:48.5]}
31. exd5 {[%clk 0:00:45.5]} 31... bxa5 {[%clk 0:01:48.3]} 32. Rb7 {[%clk
0:00:45.5]} 32... Qd6 {[%clk 0:01:47.7]} 33. Ne4 {[%clk 0:00:44.8]} 33... Qb8
{[%clk 0:01:39]} 34. Nxc5 {[%clk 0:00:40]} 34... Kd6 {[%clk 0:01:29.1]} 35.
Rxd7+ {[%clk 0:00:36.4]} 35... Kxc5 {[%clk 0:01:29.7]} 36. Qf2+ {[%clk 0:00:37]}
36... Kxc4 {[%clk 0:01:28.2]} 37. Rc1+ {[%clk 0:00:35.3]} 37... Kb3 {[%clk
0:01:25.5]} 38. Qc2+ {[%clk 0:00:35.3]} 38... Kxa3 {[%clk 0:01:24.9]} 39. Qc3+
{[%clk 0:00:29.8]} 39... Ka4 {[%clk 0:01:21.7]} 40. Ra1+ {[%clk 0:00:29.6]}
40... Kb5 {[%clk 0:01:22.1]} 41. Be2+ {[%clk 0:00:28.5]} 41... Kb6 {[%clk
0:01:21.8]} 42. Qxa5# {[%clk 0:00:28.8]} 1-0

[Event "*** Titled Tuesday Blitz"]
[Site "Chess.com"]
[Date "2020.12.01"]
[Round "3"]
[White "KonstantinB_1983"]
[Black "VladimirBugayev"]
[Result "1-0"]
[WhiteElo "2520"]
[BlackElo "2292"]
[TimeControl "180+1"]
[EndTime "10:27:07 PST"]
[Termination "KonstantinB_1983 won on time"]

1. d4 {[%clk 0:03:00.9]} 1... Nf6 {[%clk 0:02:59.3]} 2. c4 {[%clk 0:03:00]} 2...
c5 {[%clk 0:02:58.7]} 3. d5 {[%clk 0:02:59]} 3... b5 {[%clk 0:02:58.7]} 4. cxb5
{[%clk 0:02:58.3]} 4... a6 {[%clk 0:02:59.2]} 5. e3 {[%clk 0:02:58.4]} 5... d6
{[%clk 0:02:52.9]} 6. Nc3 {[%clk 0:02:57.2]} 6... g6 {[%clk 0:02:51.6]} 7. Nf3
{[%clk 0:02:57.5]} 7... Bg7 {[%clk 0:02:51.5]} 8. a4 {[%clk 0:02:57.8]} 8... O-O
{[%clk 0:02:43.5]} 9. h3 {[%clk 0:02:57.5]} 9... Nbd7 {[%clk 0:02:27.3]} 10. Ra3
{[%clk 0:02:51.5]} 10... Ne8 {[%clk 0:02:14.4]} 11. bxa6 {[%clk 0:02:46.5]}
11... Bxa6 {[%clk 0:02:13.5]} 12. Bxa6 {[%clk 0:02:46.7]} 12... Rxa6 {[%clk
0:02:13]} 13. O-O {[%clk 0:02:45.4]} 13... Qa8 {[%clk 0:01:53.5]} 14. Qc2 {[%clk
0:02:37.9]} 14... Nc7 {[%clk 0:01:51.2]} 15. e4 {[%clk 0:02:20.4]} 15... Rb8
{[%clk 0:01:49.8]} 16. b3 {[%clk 0:02:09.9]} 16... Rab6 {[%clk 0:01:10.4]} 17.
Bg5 {[%clk 0:02:05.4]} 17... Kf8 {[%clk 0:01:06.1]} 18. Nd2 {[%clk 0:01:38.2]}
18... Qb7 {[%clk 0:00:53.8]} 19. Be3 {[%clk 0:01:27.3]} 19... Rb4 {[%clk
0:00:23.9]} 20. Kh1 {[%clk 0:01:18.4]} 20... Nb6 {[%clk 0:00:20]} 21. Na2 {[%clk
0:01:08.8]} 21... Nxa4 {[%clk 0:00:13.5]} 22. Nxb4 {[%clk 0:01:06.3]} 22... cxb4
{[%clk 0:00:09.1]} 23. Rxa4 {[%clk 0:01:05.4]} 23... Bc3 {[%clk 0:00:08.1]} 24.
Nc4 {[%clk 0:01:01.9]} 24... Na6 {[%clk 0:00:05.9]} 25. Qa2 {[%clk 0:00:58.7]}
25... Nc5 {[%clk 0:00:05.2]} 26. Bxc5 {[%clk 0:00:57.8]} 26... dxc5 {[%clk
0:00:05]} 27. Rd1 {[%clk 0:00:56.6]} 1-0